Cogmind - Beta 10.2 *** ADVENTURER MODE // 2021.01.31 @ 02:25:32 Player: Scott Result: Destroyed by Y-45 Defender with Heavy Assault Rifle Performance ------------- Evolutions (1) 500 Regions Visited (3) 600 Robots Destroyed (66) 330 Value Destroyed (1641) 1641 Prototype IDs (6) 120 Alien Tech Used (0) 0 Bonus (101) 101 TOTAL SCORE: 3292 Bonus ------- High Alert Combat Kills 68 Follower Combat Kills 33 Cogmind --------- Core Integrity 0/400 Matter 300/300 Energy 500/500 System Corruption 0% Temperature Cool (9) Movement Core (450) Ox8 Location -9/Storage Parts ------- > --- POWER (1) -------- F-cell Engine > --- PROPULSION (3) --- (None) > --- UTILITY (3) ------ Medium Storage Unit Improved Light Armor Plating Hacking Suite > --- WEAPON (2) ------- Katana Katana > --- INVENTORY (8) ---- Light Ion Engine Improved Heat Sink Large Storage Unit Improved Assault Rifle Improved Light Cannon Katana Peak State ------------ > --- POWER ------------ F-cell Engine > --- PROPULSION ------- Aluminum Leg Aluminum Leg Aluminum Leg > --- UTILITY ---------- Medium Storage Unit Improved Light Armor Plating Hacking Suite > --- WEAPON ----------- Katana Katana > --- INVENTORY -------- Light Ion Engine Improved Heat Sink Large Storage Unit Improved Assault Rifle Improved Light Cannon Katana [Rating: 23] Favorites ----------- Power Light Ion Engine Engine Light Ion Engine Propulsion Aluminum Leg Treads Light Treads Leg Aluminum Leg Hover Unit Hover Unit Flight Unit Improved Flight Unit Utility Medium Storage Unit Device Sensor Array Storage Medium Storage Unit Processor Transport Network Coupler Hackware Hacking Suite Protection Improved Light Armor Plating Weapon Katana Energy Gun Small Laser Energy Cannon Beam Cannon Ballistic Gun Assault Rifle Slashing Weapon Katana Build | -11 -10 -9 -9 ------- Run | Scr Mat Mat Sto Slots Evolved 2 | . . 2 . Power . | . . . . Propulsion 1 | . . 1 . Utility 1 | . . 1 . Weapon . | . . . . Parts Attached 46 | 6 16 21 3 Power 7 | 1 1 4 1 Engine 7 | 1 1 4 1 Core . | . . . . Reactor . | . . . . Propulsion 20 | 2 7 10 1 Treads 4 | . . 4 . Leg 9 | 2 2 4 1 Wheel . | . . . . Hover 5 | . 3 2 . Flight 2 | . 2 . . Utility 8 | 1 3 3 1 Device 2 | . 1 1 . Storage 2 | 1 1 . . Processor 1 | . 1 . . Hackware 2 | . . 2 . Protection 1 | . . . 1 Artifact . | . . . . Weapon 11 | 2 5 4 . Energy Gun 5 | 1 3 1 . Energy Cannon 1 | . 1 . . Ballistic Gun 2 | 1 1 . . Ballistic Cannon . | . . . . Launcher . | . . . . Special Weapon . | . . . . Impact Weapon . | . . . . Slashing Weapon 3 | . . 3 . Piercing Weapon . | . . . . Special Melee Weapon . | . . . . Unidentified Prototypes 2 | . 1 . 1 Parts Lost 15 | . 1 9 5 Power 3 | . 1 2 . Propulsion 10 | . . 6 4 Utility 1 | . . . 1 Weapon 1 | . . 1 . Highest Loss Streak 4 | . 1 4 2 Average Slot Usage (%) 92 | . 96 91 87 Engine 10 | . 14 8 11 Treads 3 | . . 7 . Leg 19 | . 19 15 29 Hover 7 | . 8 8 . Device 7 | . 7 10 . Storage 11 | . 14 11 11 Processor 1 | . 3 . . Hackware 7 | . . 11 11 Energy Gun 5 | . 14 1 . Energy Cannon 1 | . 4 1 . Ballistic Gun 3 | . 9 . . Slashing Weapon 11 | . . 15 22 Naked Turns . | . . . . Heaviest Build 27 | 10 17 20 27 Greatest Support 60 | 20 20 60 33 Greatest Overweight (x) 4 | 1 4 4 2 Average Overweight (x) . | . . . . Largest Inventory Capacity 8 | 6 8 8 8 Average Capacity 7 | 5 7 8 8 Most Carried 8 | 6 8 8 8 Average Carried 7 | 4 7 7 7 Final Capacity 8 | 6 8 8 8 Final Carried 8 | 2 8 7 6 Class Distribution -------------------- 54% | Hacker-Mutant 38% | Mutant 6% | Commander-Mutant Dominant Class ---------------- Mutant | -10/Materials Hacker-Mutant | -9/Materials Hacker-Mutant | -9/Storage Resources | -11 -10 -9 -9 ----------- Run | Scr Mat Mat Sto Matter Collected 756 | 204 312 220 20 Remotely . | . . . . Salvage Created 2369 | . 496 1453 420 Parts 163 | . 29 104 30 Haulers Intercepted 6 | . 2 4 . Recyclers Shooed 1 | . 1 . . Parts Field Recycled . | . . . . Retrieved Matter . | . . . . Parts Self-Destructed . | . . . . Prevented . | . . . . Kills | -11 -10 -9 -9 ------- Run | Scr Mat Mat Sto Combat Hostiles Destroyed 49 | . 8 31 10 Melee 32 | . . 22 10 Guns 10 | . 7 3 . Cannons 7 | . 1 6 . Classes Destroyed 8 | . 5 3 . Hauler 6 | . 2 4 . Recycler 1 | . 1 . . Operator 4 | . . 3 1 Watcher 6 | . 3 2 1 Swarmer 16 | . 3 10 3 Grunt 19 | . 5 11 3 Brawler 1 | . . 1 . Sentry 13 | . . 9 4 Best Kill Streak 9 | . 3 9 4 Combat Bots Only 6 | . 3 6 3 Max Kills in Single Turn 1 | . 1 1 1 Gunslinging . | . . . . Exploded . | . . . . Melee 1 | . . 1 1 Uniques/NPCs Destroyed . | . . . . Combat | -11 -10 -9 -9 -------- Run | Scr Mat Mat Sto Damage Taken 2248 | . 308 1276 664 Core 444 | . 41 244 159 Absorbed by Shields . | . . . . Core Remaining (%) 91 | 100 83 . . Volleys Fired 61 | . 42 19 . Largest 2 | . 2 2 . Hottest 100 | . 100 100 . Shots Fired 120 | . 83 37 . Gun 97 | . 78 19 . Cannon 23 | . 5 18 . Launcher . | . . . . Special . | . . . . Kinetic 37 | . 37 . . Thermal 65 | . 46 19 . Explosive . | . . . . Electromagnetic 18 | . . 18 . Robot Hit Streak 23 | . 23 9 . Robot Miss Streak 2 | . 2 2 . Penetration Max . | . . . . Secondary Targets . | . . . . Shots Hit Robots 224 | . 66 118 40 Core Hits 79 | . 26 41 12 Critical Hits 1 | . . . 1 Critical Kills . | . . . . Critical Parts Destroyed 1 | . . . 1 Melee Attacks 144 | . . 102 42 Impact . | . . . . Slashing 144 | . . 102 42 Piercing . | . . . . Sneak Attacks 11 | . . 7 4 Combat Hostiles . | . . . . Follow-up Attacks 15 | . . 9 6 Damage Inflicted 6189 | . 797 3860 1532 Guns 819 | . 708 111 . Cannons 353 | . 89 264 . Explosions . | . . . . Melee 5017 | . . 3485 1532 Ramming . | . . . . Kinetic 400 | . 400 . . Thermal 677 | . 397 280 . Explosive . | . . . . Electromagnetic 95 | . . 95 . Impact . | . . . . Slashing 5017 | . . 3485 1532 Piercing . | . . . . Highest Corruption 1 | . 1 . . Average Corruption 1 | . 1 . . Corruption Purged . | . . . . Effects 3 | . 3 . . Message Errors 2 | . 2 . . Data Loss (minor) 1 | . 1 . . Overload Shots . | . . . . Overflow Damage 567 | . . 378 189 Projectiles 24 | . . 24 . Explosions . | . . . . Melee 543 | . . 354 189 Knockbacks . | . . . . Impact . | . . . . Kinetic . | . . . . Secondary . | . . . . Self-Inflicted Damage . | . . . . Shots . | . . . . Rammed . | . . . . Targets Rammed . | . . . . Kicked . | . . . . Crushed . | . . . . Highest Temperature 187 | . 187 32 . Average Temperature 39 | . 46 16 . Received Heat Transfer 888 | . 183 573 132 Siege Activations . | . . . . Robots Corrupted . | . . . . Combat Hostiles . | . . . . Parts Fried . | . . . . Impact Corruptions . | . . . . Robots Melted . | . . . . Combat Hostiles . | . . . . Parts Melted 4 | . 2 2 . Heat Transferred 1477 | . 885 592 . Parts Sabotaged . | . . . . Parts Stolen . | . . . . Parts Stripped . | . . . . Power Chain Reactions . | . . . . Missiles Intercepted . | . . . . Alert | -11 -10 -9 -9 ------- Run | Scr Mat Mat Sto Peak Influence 506 | . 223 506 303 Initial 149 | . . 18 149 Average 210 | . 69 322 190 Maximum Alert Level 2 | . 1 2 1 Low Security (%) 44 | 100 95 6 47 Level 1 48 | . 4 77 52 Level 2 7 | . . 16 . Level 3 . | . . . . Level 4 . | . . . . Level 5 . | . . . . High Security . | . . . . Max Security . | . . . . Squads Dispatched 8 | . 1 5 2 Investigation 2 | . 1 1 . Extermination . | . . . . Reinforcement 6 | . . 4 2 Assault . | . . . . Garrison . | . . . . Intercept . | . . . . Construction Impeded . | . . . . Haulers Reinforced . | . . . . Stealth | -11 -10 -9 -9 --------- Run | Scr Mat Mat Sto Distress Signals 9 | . . 7 2 Communications Jammed . | . . . . Distress Signals . | . . . . Times Spotted 85 | . 16 50 19 Peak Tracking Total 8 | . 2 6 8 Tactical Retreats 4 | . 1 2 1 Traps | -11 -10 -9 -9 ------- Run | Scr Mat Mat Sto Traps Triggered 3 | . 2 1 . Indirectly . | . . . . Trap Hack Attempts . | . . . . Triggered . | . . . . Disarmed 1 | . 1 . . Reprogrammed . | . . . . Reused . | . . . . Traps Extracted . | . . . . Installed . | . . . . Triggered . | . . . . Machines | -11 -10 -9 -9 ---------- Run | Scr Mat Mat Sto Machines Disabled 1 | . . 1 . Max in Single Turn 1 | . . 1 . Machines Sabotaged . | . . . . Garrisons Compromised . | . . . . Overloaded Fab Kills . | . . . . Fab Network Shutdowns . | . . . . Hacking | -11 -10 -9 -9 --------- Run | Scr Mat Mat Sto Machines Accessed 23 | . 8 10 5 Terminals 18 | . 6 9 3 Fabricators . | . . . . Repair Stations 1 | . 1 . . Recycling Units 4 | . 1 1 2 Scanalyzers . | . . . . Garrison Access . | . . . . Total Hacks 46 | . 17 20 9 Successful 33 | . 11 17 5 Failed 13 | . 6 3 4 Catastrophic 1 | . . . 1 Database Lockouts . | . . . . Manual . | . . . . Terminals 36 | . 11 18 7 Fabricators . | . . . . Repair Stations 5 | . 5 . . Recycling Units 5 | . 1 2 2 Scanalyzers . | . . . . Garrison Access . | . . . . Terminal Hacks 25 | . 6 15 4 Record 3 | . . 3 . Part Schematic 1 | . . . 1 Prototype ID Bank 2 | . 1 1 . Open Door 1 | . . . 1 Branch Access Points 1 | . . 1 . Terminal Index 1 | . . 1 . Garrison Index 1 | . . . 1 Disarm Traps 2 | . 2 . . Dispatch Records 1 | . . 1 . Transport Status 2 | . 1 1 . Recall Reinforcements 1 | . . 1 . Hauler Manifests 1 | . . 1 . Registered Components 3 | . 1 1 1 Zone Layout 5 | . 1 4 . Fabricator Hacks . | . . . . Repair Station Hacks 4 | . 4 . . Scan Component 2 | . 2 . . Repair 2 | . 2 . . Recycling Unit Hacks 4 | . 1 2 1 Retrieve Matter 1 | . . 1 . Retrieve Components 3 | . 1 1 1 Scanalyzer . | . . . . Garrison Access Hacks . | . . . . Unauthorized Hacks . | . . . . Terminals . | . . . . Fabricators . | . . . . Repair Stations . | . . . . Recycling Units . | . . . . Scanalyzers . | . . . . Garrison Access . | . . . . Data Cores Recovered . | . . . . Used . | . . . . Hacking Detections 17 | . 8 5 4 Full Trace Events . | . . . . Feedback Events . | . . . . Feedback Blocked . | . . . . Robot Schematics Acquired . | . . . . Robots Built . | . . . . Matter . | . . . . Time . | . . . . Total Robot Build Rating . | . . . . Part Schematics Acquired 1 | . . . 1 Parts Built . | . . . . Matter . | . . . . Time . | . . . . Total Part Build Rating . | . . . . Parts Repaired 2 | . 2 . . Time 52 | . 52 . . Parts Recycled . | . . . . Recycled Matter . | . . . . Retrieved Matter . | . . . . Retrieved Components 14 | . 8 . 6 Parts Scanalyzed . | . . . . Part Schematics Acquired . | . . . . Parts Damaged . | . . . . Bothacking | -11 -10 -9 -9 ------------ Run | Scr Mat Mat Sto Used RIF Installer . | . . . . Robots Hacked . | . . . . Non-combat . | . . . . Combat . | . . . . Robot Hacks Applied . | . . . . Relay Couplers Released . | . . . . Robots Rewired . | . . . . Allies Hacked . | . . . . Hacks Repelled . | . . . . Allies | -11 -10 -9 -9 -------- Run | Scr Mat Mat Sto Total Allies 10 | . . . 10 Largest Group 10 | . . . 10 Highest-Rated Group 88 | . . . 88 Highest-Rated Ally 16 | . . . 16 Total Orders . | . . . . Ally Attacks 14 | . . . 14 Total Damage 159 | . . . 159 Kills 1 | . . . 1 Allies Corrupted . | . . . . Allies Melted . | . . . . Intel | -11 -10 -9 -9 ------- Run | Scr Mat Mat Sto Robot Analysis Total . | . . . . Derelict Logs Recovered . | . . . . Drone Launches . | . . . . Drone Recoveries . | . . . . Exploration | -11 -10 -9 -9 ------------- Run | Scr Mat Mat Sto Turns Passed 3160 | 42 1033 1501 584 Spaces Moved 1894 | 32 582 1006 274 Core 23 | 17 1 5 . Treads 175 | . . 175 . Legs 1144 | 15 363 492 274 Wheels . | . . . . Hover 552 | . 218 334 . Flight . | . . . . Fastest Speed 50 | 50 116 52 120 Average Speed 114 | 92 123 107 125 Slowest Speed 250 | 120 250 250 180 Overloaded Moves . | . . . . Propulsion Burnouts . | . . . . Robots Hopped . | . . . . Cave-ins Triggered . | . . . . Exploration Rate (%) 55 | 4 93 93 31 Regions Visited 3 Branch Regions 1 Pre-discovered Areas . | . . . . Known Exits Taken 1 | . . 1 . Unknown Exits Taken 2 | 1 1 . . Scrap Searched . | . . . . Spaces Dug 2 | . . 2 . Terrain Destroyed 2 | . . 2 . Melee 2 | . . 2 . Projectile . | . . . . AOE . | . . . . Terrain Rammed . | . . . . Walls Destroyed . | . . . . Machines Disabled . | . . . . Actions | -11 -10 -9 -9 --------- Run | Scr Mat Mat Sto Total 2576 | 43 815 1257 461 Wait 386 | . 145 96 145 Move 1891 | 31 581 1005 274 Hop . | . . . . Pick Up 36 | 6 14 14 2 Fast Attach 20 | 2 10 7 1 Attach 14 | 4 1 7 2 Detach . | . . . . Swap 12 | . 5 7 . Drop 33 | . 17 14 2 Fire 61 | . 42 19 . Melee 123 | . . 88 35 Ram . | . . . . Kick . | . . . . Crush . | . . . . Escape Stasis . | . . . . Rewire . | . . . . Trap . | . . . . Miscellaneous . | . . . . Route ------- -11/Scrapyard -10/Materials (discovered 4 exits: *Mat x3 / [*Min]) -9/Materials (discovered 5 exits: [*Mat x3] / *Min / *Sto) -9/Storage History --------- Turn | Location | Event 16 | -11/Scrapyard | Discovered new exit (range 16) 43 | -11/Scrapyard | Entered Materials 314 | -10/Materials | Build established: Mutant 325 | -10/Materials | Discovered new exit (range 10) 460 | -10/Materials | Repaired Assault Rifle 486 | -10/Materials | Repaired Aluminum Leg 573 | -10/Materials | Discovered new exit (range 16) 806 | -10/Materials | Discovered new exit (range 13) 843 | -10/Materials | Discovered new exit (range 15) 1076 | -10/Materials | Entered another Materials area 1076 | -9/Materials | Evolved 2 slots: Propulsion x1, Utility x1 1279 | -9/Materials | Identified exit to Mines 1279 | -9/Materials | Identified exit to Storage 1324 | -9/Materials | Discovered new exit (range 10) 1523 | -9/Materials | Lost 4 parts (1p3n) 1540 | -9/Materials | Build established: Hacker-Mutant 1704 | -9/Materials | Discovered new exit (range 5) 1798 | -9/Materials | Core integrity fell below 50% 1863 | -9/Materials | Lost 3 parts (1p1n1w) 2307 | -9/Materials | Discovered new exit (range 11) 2577 | -9/Materials | Entered Storage 2733 | -9/Storage | Assisted by bots powering up and referring to "LRC-V3" 3118 | -9/Storage | Core integrity fell below 20% 3161 | -9/Storage | Destroyed by Y-45 Defender with Heavy Assault Rifle Last Messages --------------- 03106_ K-01 Serf collects debris. 03108_ Aluminum Leg destroyed. 03109_ K-01 Serf destroyed. 03109_ K-01 Serf collects debris. 03112_ Aluminum Leg destroyed. 03112_ K-01 Serf collects debris. 03122_ S-10 Pest destroyed. 03127_ Katana follow-up attack on S-10 Pest. 03127_ Destroyed Lgt. Ion Engine. 03130_ S-10 Pest destroyed. 03138_ S-10 Pest Lgt. Assault Rifle severed. 03140_ S-10 Pest destroyed. 03148_ S-10 Pest Lgt. Assault Rifle severed. 03149_ K-01 Serf collects debris. 03154_ Aluminum Leg destroyed. 03154_ Transfer Shaft disabled. 03154_ Katana follow-up attack on Y-45 Defender. 03156_ K-01 Serf collects debris. 03159_ Y-45 Defender suffers critical hit. 03159_ Destroyed Lgt. Treads. Map ----- +----------------------------------------------------+ | | | | | | | | | | | | | | | | | | | | | | | | | | | | | | | | | | | | | ????????###########??????????????????? | | ????????# #??????????????????? | | ????????# #??????????????????? | | ????????# #???????#####??????? | | ????????# [ = ######### % ######## | | ????????# [%[% + % %% % | | ????????# """%""" #% ###### #####%## | | ????????# """@ "" #==#????#####???#%## | | ????????# """%""" +%=#????????????#+## | | ????????#####Y######%#???????????? # | | ??????????# =* #?##!##??????????? # | | ??????????# ###%%[#?????????? # | | ??????????# ==!#?????????? # | | ??????????# ### #????????? # | | ??????????# [ #?#####????????? # | | ???#########%= ##??????????????= # | | ???"""" ?#= #??????????????? # | | ???"""" #% =#?????????????? | | ??""""" # %#??????????????###+#### | | # + #?????????????????????? | | # # #?????????????????????? | | # # a#?????????????????????? | | # ?# #?????????????????????? | | ?#########?# #?????????????????????? | | ???????????# #?????????????????????? | | ???????????# #?????????????????????? | | ???????????# +?????????????????????? | | ???????????# #?????????????????????? | | ???????????# #?????????????????????? | | ???????????+ #?????????????????????? | | ???????????# #?????????????????????? | | ???????????# #?????????????????????? | +----------------------------------------------------+ Best States ------------- Heat Dissipation 42 Energy Generation 19 Energy Capacity 500 Matter Stores 300 Matter Capacity 300 Sight Range 16 Robot Scan Range 10 Terrain Scan Density 10 Armor Coverage 150 Resistance: KI 20 Resistance: TH 20 Resistance: EX 20 Resistance: EM 20 Resistance: I 20 Resistance: S 20 Resistance: P 20 Evasion (%) 54 Recoil Reduction 3 Offensive Hacking 30 Item Schematics ----------------- Remote Datajack | -9/Storage | Hacked Robot Schematics ------------------ None Fabricated ------------ Nothing Alien Tech Used ----------------- None Achievements -------------- GoHome() Challenges ------------ None Game ------ Seed MachineLightReconstructor Manual? 0 Play Time 00:48:31 Cumulative 29.6 hours Start 2021.01.31 @ 01:29:49 End 2021.01.31 @ 02:25:32 Sessions 1 Manual Loads 0 Difficulty Adventurer Special Mode None Game No. 28 Rogue 13 Adventurer 15 Explorer 0 Win Type - Total 0 Types 0/0/0/0/0/0/0/0/0 Lore% 19 Gallery% 28 Achievement% 22 Wizard Run 0 Options --------- ASCII 0 Keyboard 0 Movement Mouse Keybinds 0 Fullscreen 1 Font 18/SmallcapsGlow Map View 76x50 Tactical HUD 1 Map Filters NONE Filters NONE Steam 1 RUN: 361e1863-053a-487d-8321-0ebb902950c8